bitfinex-derivatives/quotes_SOLF0:USTF0_20260315
["timestamp","ask_amount","ask_price","bid_price","bid_amount"]
[1773596250324,3.82841951,87.814,87.771,3.86099711]
[1773596252826,8.77799547,87.819,87.774,3.86099711]
[1773596253129,3.82841951,87.827,87.781,3.86099711]
[1773596254531,3.82841951,87.827,87.783,3.86099711]
[1773596257833,3.82841951,87.836,87.786,3.86099711]
[1773596258132,3.82841951,87.835,87.786,3.86099711]
[1773596258331,3.82841951,87.835,87.791,3.86099711]
[1773596259532,3.82841951,87.835,87.792,3.86099711]
[1773596274749,3.82841951,87.835,87.795,3.89272974]
[1773596277142,3.70406572,87.834,87.786,10.249]
[1773596277853,3.70406572,87.834,87.787,3.89272974]
[1773596278249,3.70406572,87.831,87.787,3.89272974]
[1773596283346,3.70406572,87.827,87.78,3.11059749]
[1773596283548,3.70406572,87.827,87.776,3.89272974]
[1773596284449,3.70406572,87.827,87.78,3.11059749]
[1773596284752,3.70406572,87.827,87.781,3.89272974]
[1773596285647,3.70406572,87.827,87.786,3.89272974]
[1773596286655,3.70406572,87.827,87.78,3.11059749]
[1773596286656,3.70406572,87.827,87.788,3.89272974]
[1773596291359,3.70406572,87.825,87.778,3.89272974]
[1773596292562,3.70406572,87.825,87.779,3.89272974]
[1773596294465,3.70406572,87.825,87.782,3.89272974]
[1773596300069,3.70406572,87.825,87.784,3.89272974]
[1773596301675,3.70406572,87.825,87.786,3.89272974]
[1773596315682,4.00348564,87.823,87.786,3.89272974]
[1773596323489,4.00348564,87.82,87.776,3.88860422]
[1773596324286,4.00348564,87.82,87.78,3.11059749]
[1773596324491,4.00348564,87.82,87.781,3.88860422]
[1773596329899,10.244,87.829,87.785,3.88860422]
[1773596330489,10.244,87.826,87.785,3.88860422]
[1773596334599,3.73029216,87.848,87.801,3.77104181]
[1773596334904,3.73029216,87.846,87.801,3.77104181]
[1773596335107,3.73029216,87.844,87.801,3.77104181]
[1773596335302,3.73029216,87.842,87.801,3.77104181]
[1773596348812,3.73029216,87.839,87.788,3.77104181]
[1773596349512,3.73029216,87.825,87.778,3.77104181]
[1773596350611,3.73029216,87.823,87.778,3.77104181]
[1773596351010,3.73029216,87.823,87.781,3.77104181]
[1773596351212,3.73029216,87.823,87.781,14.02104181]
[1773596351411,3.73029216,87.823,87.782,3.77104181]
[1773596376626,4.05753387,87.821,87.782,3.77104181]
[1773596397136,4.05753387,87.821,87.786,4.00615066]
[1773596400043,4.05753387,87.821,87.786,14.25515066]
[1773596400342,4.05753387,87.821,87.787,4.00615066]
[1773596402247,4.04512441,87.837,87.79,3.11101834]
[1773596402444,4.04512441,87.837,87.801,4.00615066]
[1773596402642,4.04512441,87.837,87.8,3.11101834]
[1773596403144,4.04512441,87.837,87.79,3.11101834]
[1773596403345,4.04512441,87.837,87.791,4.00615066]
[1773596403542,4.04512441,87.837,87.792,4.00615066]
[1773596405646,4.04512441,87.833,87.792,4.00615066]
[1773596409549,4.04512441,87.831,87.792,4.00615066]
[1773596410753,4.04512441,87.828,87.792,4.00615066]
[1773596411648,4.04512441,87.826,87.789,35.86]
[1773596412552,4.04512441,87.824,87.789,35.86]
[1773596413449,4.04512441,87.824,87.789,39.86615066]
[1773596414054,4.04512441,87.824,87.79,4.00615066]
[1773596422062,4.0168293,87.822,87.79,4.00615066]
[1773596458198,4.0168293,87.822,87.79,7.1172801]
[1773596458697,4.0168293,87.822,87.79,4.00615066]
[1773596462390,3.72143481,87.845,87.79,4.00615066]
[1773596462593,159.064,87.993,87.831,0.72557844]
[1773596462594,8.7693544,87.867,87.831,0.72557844]
[1773596462799,3.72143481,87.88,87.84,3.11112944]
[1773596463999,3.72544839,87.872,87.83,3.11112944]
[1773596465597,3.74963515,87.869,87.83,3.11112944]
[1773596466598,3.75054578,87.867,87.83,3.11112944]
[1773596467000,3.75054578,87.867,87.825,0.64500344]
[1773596467200,3.75054578,87.867,87.83,3.11112944]
[1773596467899,3.75054578,87.867,87.831,0.64271338]
[1773596476098,3.75054578,87.867,87.84,3.75302605]
[1773596477909,3.75054578,87.867,87.84,0.64189661]
[1773596479107,3.75054578,87.867,87.831,0.6362443]
[1773596507823,3.75054578,87.867,87.823,21.20882253]
[1773596508022,3.75054578,87.867,87.819,57.04882253]
[1773596508528,3.75054578,87.867,87.82,22.01569108]
[1773596508727,3.75054578,87.867,87.82,25.12682052]
[1773596508924,3.75054578,87.867,87.821,0.80686855]
[1773596509132,3.75054578,87.867,87.831,0.80686855]
[1773596516035,3.75054578,87.867,87.83,3.10738555]
[1773596517030,3.75054578,87.867,87.825,10.244]
[1773596517637,3.67562622,87.866,87.821,0.85351898]
[1773596518139,3.67562622,87.866,87.82,3.10738555]
[1773596519040,3.67562622,87.866,87.82,24.31620808]
[1773596520536,3.67562622,87.866,87.821,0.77942049]
[1773596529041,3.67562622,87.866,87.83,3.10738555]
[1773596535349,3.67562622,87.866,87.83,3.95502165]
[1773596538450,3.67562622,87.866,87.831,0.84857852]
[1773596538651,3.67562622,87.866,87.833,0.84857852]
[1773596540752,3.67562622,87.879,87.85,3.10738555]
[1773596541544,3.67562622,87.879,87.85,3.91915774]
[1773596543851,3.67562622,87.879,87.846,35.84]
[1773596544054,3.67562622,87.879,87.85,3.10738555]
[1773596545457,3.67562622,87.879,87.846,35.84]
[1773596546864,3.67562622,87.879,87.85,3.91406837]
[1773596547259,3.67562622,87.879,87.851,0.80668282]
[1773596549263,3.93689053,87.896,87.851,0.80668282]
[1773596549567,3.93689053,87.896,87.86,3.10738555]
[1773596549966,3.93689053,87.896,87.86,3.89935523]
[1773596552669,3.93689053,87.896,87.862,0.73572239]
[1773596556466,3.93689053,87.896,87.863,10.24]
[1773596556671,3.93689053,87.896,87.862,0.73572239]
[1773596560276,3.93689053,87.907,87.865,10.24]
[1773596560772,3.93689053,87.907,87.862,0.73572239]
[1773596561565,3.93689053,87.905,87.862,0.73572239]
[1773596565578,3.93689053,87.905,87.864,0.69714902]
[1773596567586,3.10738555,87.92,87.864,0.69714902]
[1773596567587,3.93689053,87.903,87.864,0.69714902]
[1773596574295,3.93689053,87.903,87.866,10.24]
[1773596576294,3.93689053,87.903,87.873,10.239]
[1773596579792,3.93689053,87.903,87.865,10.89677998]
[1773596579992,3.93689053,87.903,87.866,0.65677998]
[1773596583596,3.93689053,87.903,87.868,10.239]
[1773596591804,3.79039143,87.931,87.881,0.58584612]
[1773596591999,3.79039143,87.946,87.901,0.58584612]
[1773596592704,3.79039143,87.944,87.894,10.236]
[1773596593402,3.79039143,87.944,87.894,10.86430683]
[1773596593904,3.79039143,87.942,87.894,10.86430683]
[1773596595507,3.79039143,87.939,87.895,0.60388143]
[1773596595708,3.79039143,87.939,87.897,0.60388143]
[1773596598405,3.79039143,87.939,87.9,3.10526281]
[1773596599608,3.79039143,87.939,87.9,3.71036154]
[1773596599805,10.23,87.948,87.911,0.60509873]
[1773596600009,3.79039143,87.954,87.911,0.60509873]
[1773596600521,3.10526281,87.95,87.896,35.82]
[1773596600808,3.79039143,87.939,87.896,35.82]
[1773596601709,3.79039143,87.931,87.896,35.82]
[1773596601911,3.79039143,87.931,87.888,10.237]
[1773596603111,10.231,87.94,87.901,0.47552767]
[1773596603408,3.973526,87.939,87.901,0.47552767]
[1773596604511,3.973526,87.939,87.902,10.236]
[1773596608609,3.973526,87.939,87.902,10.62153671]
[1773596611014,3.973526,87.939,87.903,0.28557434]
[1773596623019,3.973526,87.939,87.904,10.235]
[1773596623222,3.973526,87.95,87.905,0.293668]
[1773596627632,3.973526,87.948,87.905,0.293668]
[1773596629333,3.973526,87.942,87.905,0.293668]
[1773596633730,3.973526,87.942,87.895,10.236]
[1773596635438,3.973526,87.942,87.896,0.33158446]
[1773596635841,3.973526,87.942,87.897,10.56758446]
[1773596636733,3.973526,87.942,87.9,3.10279146]
[1773596641052,3.973526,87.942,87.898,0.29793867]
[1773596644049,3.98839167,87.94,87.889,10.237]
[1773596645652,3.98839167,87.931,87.889,10.237]
[1773596652558,3.98839167,87.931,87.872,35.82]
[1773596652559,3.98839167,87.919,87.864,0.54483977]
[1773596653762,3.98839167,87.906,87.864,0.54483977]
[1773596655660,3.98839167,87.903,87.864,0.54483977]
[1773596664174,3.98839167,87.903,87.871,0.60160333]
[1773596666569,3.76624101,87.92,87.872,0.60545327]
[1773596670473,3.76624101,87.92,87.876,10.239]
[1773596673971,3.76567017,87.919,87.876,10.239]
[1773596678576,3.10279146,87.93,87.852,35.82]
[1773596678577,3.7457226,87.915,87.868,10.24]
[1773596679578,3.7457226,87.913,87.868,10.24]
[1773596680870,3.7457226,87.911,87.868,10.24]
[1773596681479,3.7457226,87.911,87.869,0.69100597]
[1773596681675,3.7457226,87.911,87.87,3.10279146]
[1773596681878,3.7457226,87.911,87.871,0.69100597]
[1773596682580,3.7457226,87.911,87.878,10.238]
[1773596683883,3.7457226,87.911,87.878,10.93826132]
[1773596684983,3.7457226,87.911,87.881,0.7003992]
[1773596685183,3.7457226,87.925,87.881,0.7003992]
[1773596687686,3.7457226,87.925,87.884,0.67323855]
[1773596691486,3.7457226,87.925,87.886,0.73436241]
[1773596692682,3.7457226,87.925,87.888,0.73176873]
[1773596694786,3.90387705,87.922,87.88,3.10279146]
[1773596694992,3.90387705,87.922,87.872,0.74558888]
[1773596695489,3.90387705,87.922,87.876,0.74902753]
[1773596697595,3.90387705,87.922,87.881,0.7274686]
[1773596700395,3.90387705,87.92,87.881,0.7274686]
[1773596710909,3.90387705,87.92,87.883,0.77017251]
[1773596711204,3.90387705,87.936,87.891,0.77017251]
[1773596711906,3.90387705,87.936,87.896,11.00627159]
[1773596712106,3.90387705,87.936,87.897,0.77027159]
[1773596751734,3.87237337,87.967,87.92,3.10447197]
[1773596752243,14.22007414,88.003,87.89,35.82]
[1773596752244,16.48101295,87.991,87.921,0.60993661]
[1773596752439,8.00338335,87.989,87.93,3.10447197]
[1773596752627,8.00338335,87.979,87.93,3.10447197]
[1773596753533,8.00338335,87.979,87.94,3.10447197]
[1773596754438,8.00338335,87.979,87.95,3.10447197]
[1773596754840,8.04277902,88.0,87.95,3.10447197]
[1773596755740,8.04224421,87.999,87.94,3.10447197]
[1773596756047,8.04224421,87.989,87.94,3.10447197]
[1773596758731,8.04224421,87.989,87.94,3.10005161]
[1773596760139,8.04224421,87.989,87.931,10.232]
[1773596760634,8.04224421,87.989,87.94,3.10005161]
[1773596760831,8.04224421,87.989,87.919,35.82]
[1773596761043,3.10005161,87.95,87.895,8.23605942]
[1773596761237,3.10005161,87.94,87.884,9.86985032]
[1773596761438,3.10005161,87.93,87.884,9.86985032]
[1773596761935,35.8,87.957,87.851,9.86985032]
[1773596762241,3.10005161,87.91,87.851,9.86985032]
[1773596762438,35.8,87.957,87.87,3.10005161]
[1773596762645,3.10005161,87.93,87.881,9.67645255]
[1773596767944,3.10005161,87.94,87.89,9.86236421]
[1773596768239,3.10005161,87.93,87.89,9.86236421]
[1773596768635,13.33105161,87.94,87.89,9.86236421]
[1773596769147,8.39947451,87.969,87.89,9.86236421]
[1773596769350,3.10005161,87.95,87.901,9.87621031]
[1773596770955,3.10005161,87.94,87.901,9.87621031]
[1773596773954,3.10005161,87.94,87.891,10.237]
[1773596773955,3.10005161,87.94,87.892,9.83674103]
[1773596774957,3.10005161,87.95,87.892,9.83674103]
[1773596776150,10.23,87.952,87.892,9.83674103]
[1773596782759,10.23,87.949,87.892,9.83674103]
[1773596787768,10.23,87.949,87.893,10.237]
[1773596787968,10.23,87.949,87.894,9.85641393]
[1773596792871,35.82,87.982,87.894,9.85641393]
[1773596793171,35.82,87.982,87.901,9.82960547]
[1773596793172,3.10005161,87.96,87.901,9.82960547]
[1773596794573,13.32905161,87.96,87.904,9.82881143]
[1773596797375,13.32905161,87.96,87.878,21.02451662]
[1773596797376,13.33005161,87.95,87.894,9.83256381]
[1773596800276,3.10005161,87.93,87.884,9.85246995]
[1773596800577,10.232,87.937,87.884,9.85246995]
[1773596801674,10.232,87.937,87.886,9.87285908]
[1773596801875,10.232,87.929,87.886,9.87285908]
[1773596802675,10.232,87.937,87.886,9.87285908]
[1773596803182,3.10005161,87.93,87.876,9.87737533]
[1773596803387,3.10005161,87.92,87.876,9.87737533]
[1773596804274,3.10005161,87.92,87.877,13.9952904]
[1773596806079,3.10005161,87.92,87.879,13.9952904]
[1773596806279,3.10005161,87.92,87.88,13.9952904]
[1773596806481,10.234,87.919,87.879,13.9952904]
[1773596807186,10.234,87.919,87.877,13.9952904]
[1773596807382,3.10005161,87.93,87.878,9.87718961]
[1773596807681,3.10005161,87.94,87.878,9.87718961]
[1773596808380,3.10005161,87.94,87.879,9.87718961]
[1773596808573,10.231,87.938,87.879,9.87718961]
[1773596808780,10.231,87.938,87.881,9.91323847]
[1773596808979,35.82,87.974,87.856,35.82]
[1773596808980,3.10005161,87.96,87.901,9.91323847]
[1773596809278,10.229,87.957,87.905,9.91323847]
[1773596810279,3.10005161,87.95,87.905,9.91323847]
[1773596813075,3.10005161,87.94,87.891,9.92717637]
[1773596814084,10.23,87.949,87.891,9.92717637]
[1773596820789,10.23,87.949,87.9,3.10308252]
[1773596820986,10.23,87.949,87.901,9.93460688]
[1773596822993,10.231,87.942,87.901,9.93460688]
[1773596830091,10.232,87.934,87.901,9.93460688]
[1773596830693,10.232,87.934,87.89,13.07707867]
[1773596830894,10.232,87.934,87.89,9.97399615]
[1773596834094,10.232,87.934,87.891,10.04308856]
[1773596836992,10.234,87.919,87.879,10.01967929]
[1773596840199,10.234,87.919,87.881,10.01290642]
[1773596851914,10.234,87.919,87.856,35.82]
[1773596851915,3.10308252,87.91,87.859,10.1013613]
[1773596852113,3.10308252,87.9,87.841,10.1013613]
[1773596852313,3.10308252,87.89,87.841,10.1013613]
[1773596853109,10.238,87.884,87.841,10.1013613]
[1773596854617,3.10308252,87.88,87.821,10.1586079]
[1773596854819,3.10308252,87.88,87.831,10.1586079]
[1773596855513,10.239,87.876,87.831,10.1586079]
[1773596855714,10.239,87.876,87.794,35.82]
[1773596855715,3.10308252,87.92,87.861,10.15167355]
[1773596856016,3.10308252,87.93,87.871,10.15167355]
[1773596857118,3.10308252,87.92,87.871,10.15167355]
[1773596857515,10.234,87.918,87.871,10.15167355]
[1773596864327,10.234,87.918,87.88,3.10308252]
[1773596864520,10.234,87.918,87.88,13.26887381]
[1773596865123,10.234,87.918,87.88,10.16579129]
[1773596900263,10.234,87.916,87.88,10.16579129]
[1773596904361,8.4948365,87.936,87.891,10.0951017]
[1773596904567,8.4948365,87.935,87.891,10.0951017]
[1773596904770,8.4948365,87.934,87.891,10.0951017]
[1773596904973,10.232,87.934,87.891,10.0951017]
[1773596920177,8.48694526,87.955,87.911,10.07985472]
[1773596920379,3.10487371,87.96,87.911,10.07985472]
[1773596921584,3.10487371,87.95,87.901,10.11298468]
[1773596922793,10.231,87.945,87.901,10.11298468]
[1773596932093,8.46771192,87.969,87.901,10.11298468]
[1773596932287,3.10487371,87.95,87.881,10.11260224]
[1773596933590,10.232,87.934,87.882,10.11221898]
[1773596939789,10.232,87.934,87.881,10.238]
[1773596939790,10.232,87.934,87.891,10.08843231]
[1773596951508,10.232,87.934,87.9,3.10360891]
[1773596951705,8.46771192,87.961,87.911,10.10002279]
[1773596952009,8.46771192,87.961,87.877,35.82]
[1773596952010,3.10360891,87.98,87.921,10.10002279]
[1773596952210,8.46771192,87.979,87.921,10.10002279]
[1773596952508,10.228,87.97,87.931,10.10157965]
[1773596959810,3.10360891,87.96,87.921,10.00682113]
[1773596960009,35.82,87.993,87.921,10.00682113]
[1773596960010,3.10360891,87.97,87.921,10.00682113]
[1773596960209,3.10360891,87.96,87.921,10.00682113]
[1773596960911,3.10360891,87.97,87.921,10.00682113]
[1773596961512,10.229,87.958,87.921,10.00682113]
[1773596962016,3.10360891,87.97,87.921,10.00682113]
[1773596962812,10.228,87.966,87.921,10.00682113]
[1773596974930,10.229,87.959,87.921,10.00682113]
[1773596975234,8.46771192,87.992,87.921,10.00682113]
[1773596975423,10.227,87.977,87.931,10.03134381]
[1773596975627,10.227,87.977,87.941,10.03134381]
[1773596990541,10.226,87.987,87.95,3.10360891]
[1773596990845,3.10360891,88.02,87.951,10.04430279]
[1773596991039,3.10360891,88.01,87.951,10.04430279]
[1773596991642,10.225,87.996,87.951,10.04430279]
[1773596993646,10.225,87.996,87.96,3.10360891]
[1773596993944,10.225,87.996,87.961,10.05930367]
[1773596995841,10.224,88.004,87.961,10.05930367]
[1773596997042,10.225,87.997,87.961,10.05930367]
[1773597000748,3.10360891,87.99,87.941,10.08892301]
[1773597001647,10.225,87.99,87.941,10.08892301]
[1773597024160,10.226,87.983,87.941,10.08892301]
[1773597027656,10.227,87.975,87.941,10.08892301]
[1773597030660,10.228,87.968,87.931,9.955371]
[1773597032368,10.229,87.96,87.931,9.955371]
[1773597032567,3.0995759,87.98,87.931,9.955371]
[1773597033666,10.228,87.968,87.931,9.955371]
[1773597035063,10.228,87.968,87.921,9.95820662]
[1773597041176,8.44388908,87.994,87.921,9.95820662]
[1773597041177,10.227,87.976,87.921,9.95820662]
[1773597049980,10.227,87.976,87.92,3.0995759]
[1773597049981,10.225,87.99,87.941,9.93439631]
[1773597050181,10.225,87.99,87.951,9.93439631]
[1773597057282,10.225,87.99,87.927,21.02451662]
[1773597057283,3.0995759,87.98,87.917,9.91971655]
[1773597057486,3.0995759,87.98,87.921,9.91858534]
[1773597057686,10.62543019,88.004,87.907,21.02451662]
[1773597057687,10.226,87.988,87.932,9.91858534]
[1773597057981,3.0995759,87.99,87.932,9.91858534]
[1773597058186,3.0995759,87.98,87.932,9.91858534]
[1773597059590,10.227,87.978,87.932,9.91858534]
[1773597078097,3.10099408,88.0,87.941,9.87161682]
[1773597078901,3.10099408,88.01,87.951,9.85098569]
[1773597080098,3.10099408,88.02,87.961,9.85128396]
[1773597081694,10.223,88.013,87.961,9.85128396]
[1773597086706,10.223,88.013,87.939,21.02451662]
[1773597086707,15.49822075,88.026,87.971,9.89617571]
[1773597087806,3.10099408,88.02,87.971,9.89617571]
[1773597088005,3.10099408,88.02,87.973,10.227]
[1773597088207,3.10099408,88.02,87.974,9.89638215]
[1773597088404,25.71922075,88.026,87.974,9.89638215]
[1773597088605,3.10099408,88.02,87.974,9.89638215]
[1773597088805,25.71922075,88.026,87.974,9.89638215]
[1773597089201,3.10099408,88.02,87.974,9.89638215]
[1773597090212,10.221,88.024,87.974,9.89638215]
[1773597092810,3.84057439,88.069,87.99,3.10099408]
[1773597093005,3.84057439,88.049,87.991,3.76916629]
[1773597094514,3.81675938,88.048,87.998,3.76916629]
[1773597097210,3.81675938,88.048,88.0,3.10099408]
[1773597097416,3.81675938,88.048,88.004,3.76916629]
[1773597101719,3.81675938,88.048,87.995,3.76916629]
[1773597107221,3.81675938,88.048,88.001,3.76916629]
[1773597110020,3.10099408,88.06,88.001,3.76916629]
[1773597110021,3.61777011,88.046,88.001,3.76916629]
[1773597111525,3.66199623,88.044,88.001,3.76916629]
[1773597112826,3.65441255,88.041,87.994,10.225]
[1773597113221,3.65441255,88.041,87.995,3.73433767]
[1773597114926,3.65441255,88.041,88.001,3.73433767]
[1773597120927,3.58653031,88.06,88.011,3.73433767]
[1773597121130,158.69,88.2,87.957,34.12]
[1773597121131,3.58653031,88.082,88.031,3.73433767]
[1773597121333,3.58653031,88.082,87.976,20.454]
[1773597121334,3.58653031,88.082,88.041,3.73433767]
[1773597121533,3.58266853,88.093,88.051,3.73433767]
[1773597121735,3.58266853,88.089,88.038,3.73433767]
[1773597122136,3.58266853,88.079,88.026,3.73433767]
[1773597122635,3.58266853,88.079,87.983,20.97651523]
[1773597122636,3.6053861,88.059,88.001,3.73433767]
[1773597122834,3.6053861,88.049,88.001,3.73433767]
[1773597123235,3.6053861,88.039,88.001,3.73433767]
[1773597126137,3.6303575,88.052,88.001,3.73433767]
[1773597126834,3.62450432,88.047,88.001,3.73433767]
[1773597127633,13.83138454,88.046,88.001,3.73433767]
[1773597129139,10.22,88.041,88.001,3.73433767]
[1773597132041,3.60210803,88.067,88.021,3.73433767]
[1773597132234,3.60210803,88.067,88.031,3.73433767]
[1773597133544,10.217,88.061,88.031,3.73433767]
[1773597140645,3.72270778,88.095,88.031,3.73433767]
[1773597140949,3.72270778,88.095,88.041,2.25769768]
[1773597141444,3.72270778,88.086,88.041,2.25769768]
[1773597142642,10.215,88.079,88.041,2.25769768]
[1773597143140,4.00894063,88.097,88.051,2.32385625]
[1773597144640,4.00894063,88.109,88.06,3.09575731]
[1773597144844,4.00894063,88.109,88.061,2.29168205]
[1773597148254,10.55343996,88.147,88.034,35.76]
[1773597148255,4.00894063,88.151,88.101,2.16318762]
[1773597148444,14.10115986,88.189,88.034,35.76]
[1773597148445,14.0913395,88.213,88.13,3.09575731]
[1773597148647,14.0913395,88.213,88.053,34.09]
[1773597148648,1.97445688,88.22,88.17,3.09575731]
[1773597148953,1.97445688,88.22,88.093,13.95380219]
[1773597148954,14.0849666,88.334,88.201,3.91546694]
[1773597149153,21.10908315,88.367,88.171,34.09]
[1773597149450,3.09575731,88.29,88.23,3.09575731]
[1773597149652,3.09575731,88.26,88.153,20.72772175]
[1773597149852,3.09575731,88.24,88.18,3.09575731]
[1773597150254,3.09575731,88.26,88.2,3.09575731]
[1773597150454,9.54636427,88.259,88.2,3.09575731]
[1773597150650,9.54636427,88.259,88.169,10.37144633]
[1773597150855,9.54636427,88.259,88.17,7.70440948]
[1773597151052,9.54636427,88.259,88.165,35.76]
[1773597151755,9.60013963,88.256,88.165,35.76]
[1773597152354,9.60013963,88.256,88.17,7.70440948]
[1773597154049,9.55228163,88.254,88.171,10.204]
[1773597154651,9.55339517,88.285,88.198,10.201]
[1773597154956,9.55339517,88.282,88.19,7.70440948]
[1773597156353,1.97236982,88.312,88.165,35.76]
[1773597156354,9.56996404,88.279,88.17,7.70440948]
[1773597156550,9.56996404,88.275,88.19,7.70440948]
[1773597156951,9.56495992,88.272,88.182,10.203]
[1773597157253,1.97212392,88.322,88.13,7.70440948]
[1773597157254,9.56495992,88.287,88.21,7.70440948]
[1773597157656,9.56495992,88.287,88.211,10.68027364]
[1773597157956,9.56495992,88.287,88.212,10.68027364]
[1773597158256,9.56495992,88.287,88.213,10.68027364]
[1773597158457,9.56495992,88.287,88.214,10.68027364]
[1773597158652,9.56495992,88.287,88.215,10.68027364]
[1773597158858,9.56495992,88.287,88.216,10.68027364]
[1773597159158,9.56495992,88.287,88.217,10.68027364]
[1773597159457,9.56495992,88.287,88.218,10.68027364]
[1773597159656,9.56495992,88.287,88.219,10.68027364]
[1773597159858,9.56495992,88.287,88.22,10.68027364]
[1773597160058,9.56495992,88.287,88.221,10.68027364]
[1773597160261,9.56495992,88.287,88.222,10.68027364]
[1773597160458,9.56495992,88.287,88.223,10.68027364]
[1773597160755,10.191,88.286,88.224,10.68027364]
[1773597160953,10.191,88.286,88.21,7.70440948]
[1773597160954,9.34188803,88.285,88.225,10.68027364]
[1773597161158,9.34188803,88.285,88.21,7.70440948]
[1773597161357,9.34188803,88.285,88.211,10.63326693]
[1773597161656,9.34188803,88.285,88.214,10.199]
[1773597161861,9.34188803,88.285,88.215,10.63326693]
[1773597162154,9.34188803,88.285,88.216,10.63326693]
[1773597162360,9.34188803,88.285,88.217,10.63326693]
[1773597162558,9.34188803,88.285,88.218,10.63326693]
[1773597162758,9.34188803,88.285,88.219,10.63326693]
[1773597163057,9.34188803,88.285,88.22,10.63326693]
[1773597163259,9.34188803,88.285,88.214,10.199]
[1773597163460,9.34188803,88.285,88.215,10.61811164]
[1773597163659,9.34188803,88.285,88.216,10.61811164]
[1773597163960,9.34188803,88.285,88.217,10.61811164]
[1773597164157,9.34188803,88.285,88.214,10.199]
[1773597164354,10.19,88.298,88.218,10.199]
[1773597164559,10.19,88.298,88.23,7.70440948]
[1773597164761,10.19,88.298,88.231,10.61260504]
[1773597165062,9.30942391,88.297,88.232,10.61260504]
[1773597165257,9.30942391,88.291,88.233,10.61260504]
[1773597165463,9.30942391,88.291,88.21,7.70440948]
[1773597165761,9.30942391,88.291,88.211,10.60152496]
[1773597165951,9.31952458,88.276,88.212,10.60152496]
[1773597166155,9.31952458,88.276,88.203,35.72]
[1773597166156,9.31952458,88.291,88.23,7.70440948]
[1773597166352,9.31952458,88.291,88.231,10.5951548]
[1773597166551,9.31952458,88.291,88.232,10.5951548]
[1773597166759,9.31952458,88.291,88.233,10.5951548]
[1773597166954,7.70440948,88.34,88.234,10.59319199]
[1773597167154,158.251,88.445,88.203,35.72]
[1773597167155,158.133,88.511,88.29,7.70440948]
[1773597167358,158.133,88.511,88.221,158.652]
[1773597167359,20.345,88.45,88.291,46.29319199]
[1773597167559,7.70440948,88.41,88.3,7.70440948]
[1773597167861,7.70440948,88.41,88.301,10.59319199]
[1773597168063,10.178,88.397,88.318,10.187]
[1773597168360,7.70440948,88.48,88.32,7.70440948]
[1773597168361,7.70440948,88.43,88.32,7.70440948]
[1773597168564,49.94,88.539,88.36,7.70440948]
[1773597168767,7.70440948,88.52,88.41,7.70440948]
[1773597169161,4.64951392,88.499,88.411,11.02102463]
[1773597169364,0.00081693,88.468,88.386,35.68]
[1773597169566,0.00081693,88.468,88.4,7.70440948]
[1773597169768,0.00081693,88.468,88.401,10.98564228]
[1773597169968,0.00081693,88.468,88.341,199.36]
[1773597169969,4.62745091,88.468,88.402,10.98564228]
[1773597170168,4.62663398,88.466,88.369,35.68]
[1773597170465,0.07156199,88.443,88.38,7.70440948]
[1773597170668,0.07156199,88.443,88.381,10.96700009]
[1773597170969,0.07156199,88.443,88.382,10.96700009]
[1773597171168,0.07156199,88.443,88.38,7.70440948]
[1773597171169,0.00081693,88.468,88.383,10.94236463]
[1773597171466,4.682521,88.529,88.44,7.70440948]
[1773597171665,1.96744667,88.543,88.501,3.40104494]
[1773597171666,0.00044667,88.543,88.501,3.40104494]
[1773597171972,7.70440948,88.56,88.463,3.37562971]
[1773597172168,7.70440948,88.58,88.471,3.37591453]
[1773597172365,7.70440948,88.54,88.471,3.37591453]
[1773597172868,7.70440948,88.52,88.442,3.4885648]
[1773597173060,35.66,88.584,88.421,3.4885648]
[1773597173061,7.70440948,88.5,88.421,3.4885648]
[1773597173666,3.74846358,88.5,88.421,3.4885648]
[1773597173864,3.74846358,88.498,88.421,3.4885648]
[1773597174071,35.66,88.584,88.421,3.4885648]
[1773597174072,3.74846358,88.529,88.421,3.4885648]
[1773597174573,3.74846358,88.509,88.423,3.47900151]
[1773597175571,10.166,88.502,88.423,3.47900151]
[1773597175768,3.74846358,88.501,88.423,3.47900151]
[1773597176868,3.74846358,88.501,88.422,35.64]
[1773597176869,3.74846358,88.559,88.451,3.55080309]
[1773597177068,3.74846358,88.549,88.451,3.55080309]
[1773597177267,3.74846358,88.532,88.451,3.55080309]
[1773597177666,3.74846358,88.532,88.453,3.5293086]
[1773597179075,3.74846358,88.557,88.453,3.5293086]
[1773597179279,157.909,88.636,88.422,35.64]
[1773597179280,3.74846358,88.578,88.481,3.54277611]
[1773597179479,3.74846358,88.578,88.482,3.54277611]
[1773597179674,3.74846358,88.575,88.482,3.54277611]
[1773597180276,3.74846358,88.558,88.482,3.54277611]